{"text_format":"3","workbook":"xlsx","n_sheets":24,"sheets":["Instructions","Assess","REPORT","Definitions","Corr Maint","FTS (1)","Parachute (1)","Flight","Geofence","Landing","UA","CS","FTS (2)","Cargo","HAZMAT","Part 135","Ag App","GNSS","GNSS Add","Crew Comm","CNPC","Parachute (2)","Other","Values"],"not_rendered":{"images":3,"macros":1,"defined_names":2},"read":"whole","date_system":"1900"}

{"sheet":"Instructions","index":0,"n_rows":41,"n_cols":1,"rows_kept":41}
[]
["Unmanned Aircraft System (UAS) Flight Anomaly Report"]
["General Information and Instructions"]
["The information on this tab provides general information about this workbook and instructions for generating the report customized to the anomaly being reported. Guidance regarding individual questions in the report is provided in the user guide and via tooltips within the form. The tooltips will appear when the answer field in the form is selected."]
["Public Burden Statement"]
["A federal agency may not conduct or sponsor, and a person is not required to respond to, nor shall a person be subject to a penalty for failure to comply with a collection of information subject to the requirements of the Paperwork Reduction Act unless that collection of information displays a currently valid OMB Control Number.  The OMB Control Number for this information collection is 21XX-XXXX.  Public reporting for this collection of information is estimated to be approximately 60 minutes per response, including the time for reviewing instructions, searching existing data sources, gathering and maintaining the data needed, and completing and reviewing the collection of information.  \nAll responses to this collection of information are required to obtain or retain a benefit (49 U.S.C. § 106(l) and (m)).  Send comments regarding this burden estimate or any other aspect of this collection of information, including suggestions for reducing this burden to: Information Collection Clearance Officer, Federal Aviation Administration, 10101 Hillwood Parkway, Fort Worth, TX 76177-1524."]
[]
["Introduction to the UAS Anomaly Report"]
["The UAS Flight Anomaly Report is a way for the UAS Integration Office and other Federal Aviation Administration (FAA) offices with the responsibility of safely integrating UAS into the National Airspace System (NAS) to gather data about minor unexpected events that occur during normal UAS operations. This data, when aggregated, will assist with setting performance standards, will inform future rulemaking, and may reveal questions to address to improve the safety of UAS operations in the NAS. This data will not be used in a punitive fashion against any participant in the BEYOND program or Partnership for Safety Program (PSP). Participants will not submit this report for every flight, only for flights in which an anomaly occurred."]
[]
["The UAS Flight Anomaly Report does not replace official accident and incident reporting requirements. If an accident occurs that results in at least serious injury to any person or any loss of consciousness, or if it causes damage to any property (other than the UAS itself) in excess of $500 to repair or replace the property (whichever is lower), report the accident to the FAA within ten days using DroneZone or by contacting the nearest Flight Standards District Office. Will Carry operators must report any dangerous goods incidents, discrepancies, and apparent violations in accordance with the Hazardous Materials Regulations."]
[]
["Design of the UAS Flight Anomaly Report"]
["The UAS Flight Anomaly Report is a customizable report: the user identifies the anomalies that occurred during the flight and a form with only questions pertaining to the selected anomalies will be generated. The form contains a combination of multiple-choice questions using drop-down boxes and open-ended questions with open text boxes. The user can view quick tips about each question by left-clicking once in the response field."]
[]
["Tour of the Report Workbook"]
["The UAS Flight Anomaly Report is a Microsoft Excel macro-enabled workbook. To generate the report, the user must enable macros in Excel. To enable macros, complete these steps in Excel:"]
["1.      Click the File tab."]
["2.      Click Options."]
["3.      Click Trust Center, and then click Trust Center Settings."]
["4.      In the Trust Center, click Macro Settings."]
["5.      Select “Enable all macros.” (The wording may differ slightly among different versions of Excel.)"]
["6.      Click OK."]
[]
["The workbook contains multiple tabs:"]
["·        Instructions: This tab contains a summary version of the instructions in this user guide."]
["·        Assess: This is the starting point for submitting a UAS Flight Anomaly Report. The user answers the questions on this tab to generate the custom report."]
["·        REPORT: This is the custom UAS Flight Anomaly Report generated based on the user’s responses on the Assess tab."]
["·        Definitions: The definitions in Appendix A of the user guide are also provided in the workbook for ready reference."]
[]
["Generate the Custom UAS Flight Anomaly Report"]
["There are roughly 60 questions unique to specific types of anomalies. In order to prevent the user from searching through the entire set of questions in order to answer as few as 1 anomaly-specific question about a flight, the user begins the reporting process by customizing the report needed. To generate the custom report, complete these steps:"]
["1.      Open the Excel workbook titled “UAS Flight Anomaly Report.”"]
["2.      Click the “Assess” tab."]
["3.      Select all of the anomalies that occurred during the flight by clicking the checkboxes next to the applicable description."]
["4.      If the answer to any of the seven shaded questions at the bottom of the form is yes, click the applicable checkbox."]
["5.      Click the “Generate Form” button. The anomaly-specific questions will be appended to the standard questions on the “REPORT” tab."]
["6.      Save the file with a different filename in order to preserve both the original file and the newly-generated report for future use."]
["Note: To clear all of the checkboxes at once, click the “Clear All Checkboxes” button near the top of the form."]
[]
["Instrument/UAS Flight Anomaly Report (5/21)"]

{"sheet":"Assess","index":1,"n_rows":33,"n_cols":3,"rows_kept":33,"merged":[[0,0,0,2],[1,0,1,2]]}
["Unmanned Aircraft System (UAS) Flight Anomaly Report Generator"]
["Answer the questions on this sheet to generate a blank UAS Flight Anomaly Report form populated with questions applicable to the anomaly that occurred."]
["Select the type of anomaly that occurred (select all that apply):"]
["Planned Flight Path Deviations",null,"T/F"]
["The UA deviated from the planned flight path.",{"$f":"IF(C5=TRUE,\"YES\",\"NO\")","v":"NO"},false]
["The UA crossed the geofencing boundary.",{"$f":"IF(C6=TRUE,\"YES\",\"NO\")","v":"NO"},false]
["The UA landed outside the designated landing area.","NO",false]
["Unplanned Flight Terminations"]
["One or more critical aircraft components failed, resulting in terminating the flight.","NO",false]
["The control station malfunctioned, resulting in terminating the flight.","NO",false]
["The flight termination system failed to deploy when needed.","NO",false]
["Mitigations Required"]
["The cargo delivery system malfunctioned.","NO",false]
["The agricultural application system malfunctioned.","NO",false]
["The Global Navigation Satellite System (GNSS) link was lost long enough to trigger a mitigation response.","NO",false]
["Communication between crewmembers was lost long enough to trigger a mitigation response, including the use of backup communication devices.","NO",false]
["The Control and Non-Payload Communication (CNPC) link was lost long enough to trigger a mitigation response.","NO",false]
["The parachute failed to deploy.","NO",false]
["An anomaly, other than those listed above, triggered a mitigation response.","NO",false]
["Note: This includes lost communication with air traffic control. This also includes human errors that could lead to lessons learned regarding UAS design and/or flight procedures. (There will be no evaluation of individuals; the data will be analyzed at the aggregate level.)"]
["Was unscheduled corrective maintenance required as a result of the anomaly?","NO",false]
["Did the flight termination system deploy?","NO",false]
["Did the flight termination system deploy unexpectedly?","NO",false]
["Did the parachute deploy?","NO",false]
["Did the parachute deploy unexpectedly?","NO",false]
["Was the unmanned aircraft carrying hazardous materials (HAZMAT) cargo?","NO",false]
["Was this a Part 135 flight?",{"$f":"IF(C27=TRUE,\"YES\",\"NO\")","v":"NO"},false]
[]
[]
[]
["Note: If you change any responses after clicking the \"Generate Form\" button, you must click the \"Generate Form\" button again to reset the form."]
[]
["Instrument/UAS Flight Anomaly Report (5/21)"]

{"sheet":"REPORT","index":2,"n_rows":13,"n_cols":3,"rows_kept":13,"merged":[[0,0,0,2],[1,0,1,2],[2,0,2,2],[3,0,3,2],[6,2,7,2],[10,2,12,2],[13,0,13,2],[14,0,14,2],[15,0,15,2],[16,0,16,2],[17,0,17,2]]}
[]
["Unmanned Aircraft System (UAS) Flight Anomaly Report"]
["The data in this report will be used for trend analysis to identify lessons to apply as we continue to integrate UAS into the NAS."]
[]
["Aircraft Nickname or Registration Number"]
["Launch Date"]
["Launch Time\n(if using 12-hr clock, include \"am\" or \"pm\", as applicable)"]
["Time of Anomaly (if known)\n(if using 12-hr clock, include \"am\" or \"pm\", as applicable)"]
["Geographical Coordinates of Anomaly\n(if known)"]
["Anomaly Severity"]
["Mission Type",null,"These fields are not required if you use the Monthly Individual Flight Report instead of the Monthly Summary Flight Report."]
["If Other, briefly describe."]
["Flight Type"]

{"sheet":"Definitions","index":3,"n_rows":23,"n_cols":3,"rows_kept":23}
["Term","Definition","Source"]
["Accident [UAS]","An occurrence associated with the operation of any public or civil unmanned aircraft system that takes place between the time that the system is activated with the purpose of flight and the time that the system is deactivated at the conclusion of its mission, in which: (1) Any person suffers death or serious injury; or (2) The aircraft has a maximum gross takeoff weight of 300 pounds or greater and sustains substantial damage.","49 CFR 830.2"]
["Anomaly [UAS]","An event (e.g., equipment malfunction or loss of a safety-critical communication or navigation link) that does not meet the reporting criteria of an accident, incident, or occurrence but adversely affects the operation of any public or civil unmanned aircraft system between the time that the system is activated with the purpose of flight and the time that the system is deactivated at the conclusion of its flight, in which (1) a mitigation strategy is executed (via application of technology and/or procedures); or (2) the aircraft exceeds its operational boundaries.","IPP Data Team 8/12/20"]
["Cargo","Any property carried on an aircraft other than mail and accompanied or mishandled baggage.","UAS FY19 Implementation Plan"]
["Control and Non-Payload Communication (CNPC)","The communication between the control station and the unmanned aircraft used to perform navigational functions, including mitigations and maneuvers.","IPP Data Team 6/4/20"]
["Crewmember [UAS]","In addition to the crewmembers identified in 14 CFR part 1, a UAS flightcrew member includes pilots, sensor/payload operators, and VOs but may include other persons as appropriate or required to ensure safe operation of the aircraft.","N 8900.227 (cancelled)"]
["Dangerous goods","See Hazardous material."]
["Flight termination system","A system that terminates the flight of a UAS in the event that all other contingencies have been exhausted and further flight of the aircraft cannot be safely achieved, or other potential hazards exist that immediate discontinuation of flight.","ASTM F3298-19"]
["Flight time","Pilot time that commences when an aircraft moves under its own power for the purpose of flight and ends when the aircraft comes to rest after landing","14 CFR 1.1"]
["Flyaway","When the pilot is unable to effect control of the aircraft and, as a result, the UA is not operating in a predictable or planned manner.","JO 7200.23A"]
["Hazardous material","A substance or material that the Secretary of Transportation has determined is capable of posing an unreasonable risk to health, safety, and property when transported in commerce, and has designated as hazardous under section 5103 of Federal hazardous materials transportation law (49 U.S.C. 5103).","49 CFR 171.8"]
["Incident","An occurrence, other than an accident, associated with the operation of an aircraft, which affects or could affect the safety of operations.\nExamples of serious incidents from NTSB Advisory to Operators of Civil Unmanned Aircraft Systems in the United States:\nTrue \"fly-away\", inability of required flight crewmember to perform normal duties as result of injury or illness, inflight fire, aircraft collision in flight, >$25K damage to objects other than the aircraft, aircraft is overdue and is believed to have been involved in an accident","49 CFR 830.2"]
["Minor [severity definition]","Nuisance. Operating limitations. Use of emergency procedures. Minor incident.","AC 107-2"]
["Negligible [severity definition]","Little consequence.","AC 107-2"]
["Occurrence","An abnormal event, other than an accident or incident. Examples include: low speed aborts or air turnbacks.","FAA Order 8900.1"]
["Parachute [UAS]","Any aerodynamic deceleration device designed to slow the descent of sUA when not under stable safe flight.","ASTM F3322-18"]
["Parachute recovery system [UAS]","Summation of the components of a parachute recovery system that work to reduce descent velocity.","ASTM F3322-18"]
["Remote Pilot in Command (RPIC)","Person who is directly responsible for and is the final authority as to the operation of the UAS; has been designated as remote pilot in command before or during the flight of a UAS; and holds the appropriate CAA certificate for the conduct of the flight.","ASTM F3266-18"]
["Serious Injury","Any injury which: (1) Requires hospitalization for more than 48 hours, commencing within 7 days from the date of the injury was received; (2) results in a fracture of any bone (except simple fractures of fingers, toes, or nose); (3) causes severe hemorrhages, nerve, muscle, or tendon damage; (4) involves any internal organ; or (5) involves second- or third-degree burns, or any burns affecting more than 5 percent of the body surface.","49 CFR 830.2"]
["Substantial Damage","Damage or failure which adversely affects the structural strength, performance, or flight characteristics of the aircraft, and which would normally require major repair or replacement of the affected component. Engine failure or damage limited to an engine if only one engine fails or is damaged, bent fairings or cowling, dented skin, small punctured holes in the skin or fabric, ground damage to rotor or propeller blades, and damage to landing gear, wheels, tires, flaps, engine accessories, brakes, or wingtips are not considered “substantial damage” for the purpose of this part.","49 CFR 830.2"]
["Unmanned Aircraft (UA)","An aircraft operated without the possibility of direct human intervention from within or on the aircraft.","JO 7200.23A"]
["Unmanned Aircraft System (UAS)","An unmanned aircraft and associated elements (including communication links and the components that control the unmanned aircraft) that are required for the pilot in command to operate safely and efficiently in the national airspace system.","JO 7200.23A"]
["Will Carry","The certificate holder has authorization to transport dangerous goods in its OpSpec.","AC 121-40"]

{"sheet":"Corr Maint","index":4,"n_rows":6,"n_cols":1,"rows_kept":6,"hidden":true,"merged":[[0,0,0,2],[2,1,2,2],[3,0,3,2],[4,0,4,2]]}
["Unscheduled Corrective Maintenance"]
["Type of Unscheduled Corrective Maintenance"]
["UAS Component(s) that Required Unscheduled Corrective Maintenance"]
["Description of Unscheduled Corrective Maintenance"]
[]
["end"]

{"sheet":"FTS (1)","index":5,"n_rows":9,"n_cols":1,"rows_kept":9,"hidden":true,"merged":[[0,0,0,2],[1,0,1,2],[2,0,2,2],[3,0,3,2],[4,0,4,2],[6,0,6,2],[7,0,7,2]]}
["Flight Termination System Deployed"]
["Describe the flight termination system installed on the aircraft."]
[]
["Describe the circumstances leading to the deployment of the flight termination system. If known, what caused the flight termination system to deploy?"]
[]
["end"]
["What corrective action was taken to minimize the risk of the flight termination system unnecessarily deploying again?"]
[]
["end"]

{"sheet":"Parachute (1)","index":6,"n_rows":9,"n_cols":1,"rows_kept":9,"hidden":true,"merged":[[0,0,0,2],[1,0,1,2],[2,0,2,2],[3,0,3,2],[4,0,4,2],[6,0,6,2],[7,0,7,2]]}
["Parachute Recovery System Deployed"]
["Describe the parachute recovery system installed on the aircraft."]
[]
["Describe the circumstances leading to the deployment of the parachute. If known, what caused the parachute to deploy?"]
[]
["end"]
["What corrective action was taken to minimize the risk of the parachute recovery system unnecessarily deploying again?"]
[]
["end"]

{"sheet":"Flight","index":7,"n_rows":7,"n_cols":2,"rows_kept":7,"hidden":true,"merged":[[0,0,0,2],[1,0,1,2],[2,0,2,2],[3,0,3,1],[5,0,5,1]]}
["Flight Path Deviation"]
["Cause of Unplanned Flight Path Deviation"]
[]
["Did the UA exceed the approved altitude?"]
[null,"If Yes, for how long? (mm:ss)"]
["Was the horizontal deviation greater than 50 feet?"]
["end"]

{"sheet":"Geofence","index":8,"n_rows":8,"n_cols":1,"rows_kept":8,"hidden":true,"merged":[[0,0,0,2],[1,1,1,2],[2,0,2,1],[3,0,3,1],[4,0,4,2],[5,0,5,2],[6,0,6,1]]}
["Geofencing Malfunction"]
["What action took place upon the UA crossing the geofencing boundary?"]
["If the automatic contingency system activated, identify the contingency action."]
["Did the UA return to within the geofencing boundary?"]
["If No, identify any hazards or damage resulting from landing outside the geofencing boundary."]
[]
["How long was the UA outside the geofencing boundary? (mm:ss)"]
["end"]

{"sheet":"Landing","index":9,"n_rows":5,"n_cols":1,"rows_kept":5,"hidden":true,"merged":[[0,0,0,2],[2,0,2,2],[3,0,3,2]]}
["Designated Landing Area Deviation"]
["How far from the designated landing area did the UA land?"]
["What caused the UA to land outside the designated landing area?"]
[]
["end"]

{"sheet":"UA","index":10,"n_rows":7,"n_cols":1,"rows_kept":7,"hidden":true,"merged":[[0,0,0,2],[1,0,1,2],[2,0,2,2],[3,0,3,2],[4,0,4,2],[5,0,5,2]]}
["Aircraft Failure"]
["Systems/Components in the category of aircraft failure include the frame, propulsion system, electrical system, aircraft-mounted safety-critical sensors, and cameras (if used as mitigation)."]
["Which aircraft component(s) failed to operate as intended?"]
[]
["Describe the circumstances behind the aircraft failure."]
[]
["end"]

{"sheet":"CS","index":11,"n_rows":5,"n_cols":1,"rows_kept":5,"hidden":true,"merged":[[0,0,0,2],[1,0,1,2],[2,0,2,2],[3,0,3,2]]}
["Control Station Malfunction"]
["Only include malfunctions of devices that have the ability, or potential, to control the aircraft. Do not include malfunctions of informational stations."]
["Describe the circumstances leading to the control station malfunction, including the components involved if known (e.g., battery, software, sensor, etc.)."]
[]
["end"]

{"sheet":"FTS (2)","index":12,"n_rows":8,"n_cols":1,"rows_kept":8,"hidden":true,"merged":[[0,0,0,2],[1,0,1,2],[2,0,2,2],[3,0,3,2],[4,0,4,2],[5,0,5,2],[6,0,6,2]]}
["Flight Termination System Failed to Deploy"]
["Describe the flight termination system installed on the aircraft."]
[]
["Describe the circumstances leading to the failure of the flight termination system. If known, what caused the flight termination system to fail?"]
[]
["What corrective action was taken to minimize the risk of the same type of failure occurring again?"]
[]
["end"]

{"sheet":"Cargo","index":13,"n_rows":10,"n_cols":1,"rows_kept":10,"hidden":true,"merged":[[0,0,0,2],[3,0,3,2],[4,0,4,2],[5,0,5,2],[6,0,6,2],[7,0,7,2],[8,0,8,2]]}
["Cargo Delivery System Malfunction"]
["Weight of Cargo Transported During Flight"]
["If the weight is unknown, what is the maximum cargo weight allowed by the UAS in order to launch?"]
["Describe the cargo delivery system."]
[]
["Describe the circumstances leading to the cargo delivery malfunction, including the components involved if known."]
[]
["What corrective action was taken to minimize the risk of the same type of malfunction occurring again?"]
[]
["end"]

{"sheet":"HAZMAT","index":14,"n_rows":10,"n_cols":1,"rows_kept":10,"hidden":true,"merged":[[0,0,0,2],[6,0,6,2],[7,0,7,2]]}
["HAZMAT Cargo Information"]
["UN #"]
["Proper Shipping Name"]
["Packing Group"]
["Inner Quantity"]
["Total Quantity"]
["What happened to the package/container (i.e., was it a hard landing, did it fall from cruise altitude, etc.)?"]
[]
["Was any HAZMAT released?"]
["end"]

{"sheet":"Part 135","index":15,"n_rows":10,"n_cols":3,"rows_kept":10,"hidden":true,"merged":[[0,0,0,2],[2,0,6,0],[8,0,8,1]]}
["Part 135 Flight Information"]
[null,"Role","Number"]
["Number of Crewmembers","Pilot in Command"]
[null,"Visual Observer"]
[null,"Control Station Operator"]
[null,"Manager"]
[null,"Other"]
["If \"Other\" selected, describe."]
["If the pilot to aircraft ratio was greater than 1:1, what was the ratio?"]
["end"]

{"sheet":"Ag App","index":16,"n_rows":10,"n_cols":1,"rows_kept":10,"hidden":true,"merged":[[0,0,0,2],[3,0,3,2],[4,0,4,2],[5,0,5,2],[6,0,6,2],[7,0,7,2],[8,0,8,2]]}
["Agricultural Application System Malfunction"]
["Weight of Cargo Transported During Flight"]
["If the weight is unknown, what is the maximum cargo weight allowed by the UAS in order to launch?"]
["Describe the application/delivery system."]
[]
["Describe the circumstances leading to the application/delivery system malfunction, including the components involved if known."]
[]
["What corrective action was taken to minimize the risk of the same type of malfunction occurring again?"]
[]
["end"]

{"sheet":"GNSS","index":17,"n_rows":13,"n_cols":4,"rows_kept":13,"hidden":true,"merged":[[0,0,0,2],[3,0,3,2],[8,1,8,2],[9,0,9,1],[10,1,10,2],[11,1,11,2]]}
["Global Navigation Satellite System (GNSS) Lost Link"]
["GNSS Lost Link Latency Threshold (mm:ss)"]
["Number of GNSS Lost Link Occurrences"]
["For each GNSS lost link occurrence, enter the last known geographical coordinates before the GNSS lost link occurred.\n(Click the \"Add\" button to add data about another occurrence at the bottom of the form.)"]
["Latitude","Longitude","Altitude","Unit of Measure"]
[]
["Duration of GNSS Lost Link Occurrence (mm:ss)"]
["Source of Geographical Coordinates"]
["If \"Other\" selected, specify."]
["If the RPIC controlled multiple UA on the mission, how many UA were affected by the GNSS lost link?"]
["GNSS Lost Link Procedure Performed"]
["If \"Other\" selected, describe."]
["end"]

{"sheet":"GNSS Add","index":18,"n_rows":6,"n_cols":4,"rows_kept":6,"hidden":true,"merged":[[0,0,0,2],[1,0,1,2]]}
["Global Navigation Satellite System (GNSS) Lost Link Additional Data"]
["For each GNSS lost link occurrence, enter the last known geographical coordinates before the GNSS lost link occurred."]
["Latitude","Longitude","Altitude","Unit of Measure"]
[]
["Duration of GNSS Lost Link Occurrence (mm:ss)"]
["end"]

{"sheet":"Crew Comm","index":19,"n_rows":10,"n_cols":1,"rows_kept":10,"hidden":true,"merged":[[0,0,0,2],[1,0,1,1],[2,0,2,1],[3,0,3,2],[4,0,4,2],[5,1,5,2],[6,1,6,2],[7,0,7,2],[8,0,8,2]]}
["Crewmember Communication Loss"]
["What type of primary communication device did the crew use (cellphone, radio, etc.)?"]
["If applicable, the crew used what type(s) of backup communication device?"]
["Describe the circumstances leading to the loss of communication between crewmembers. If known, what caused the loss of communication?"]
[]
["How did the communication loss affect the aircraft?"]
["If \"Other\" selected, describe."]
["What corrective action was taken to minimize the risk of losing primary communication among crewmembers again?"]
[]
["end"]

{"sheet":"CNPC","index":20,"n_rows":7,"n_cols":1,"rows_kept":7,"hidden":true,"merged":[[0,0,0,2],[3,0,3,1],[4,1,4,2],[5,1,5,2]]}
["Control and Non-Payload Communication (CNPC) Lost Link"]
["Number of CNPC Lost Link Occurrences"]
["Longest Duration of CNPC Lost Link Occurrence (mm:ss)"]
["If the RPIC controlled multiple UA on the mission, how many UA were affected by the CNPC lost link?"]
["CNPC Lost Link Procedure Performed"]
["If \"Other\" selected, describe."]
["end"]

{"sheet":"Parachute (2)","index":21,"n_rows":8,"n_cols":1,"rows_kept":8,"hidden":true,"merged":[[0,0,0,2],[1,0,1,2],[2,0,2,2],[3,0,3,2],[4,0,4,2],[5,0,5,2],[6,0,6,2]]}
["Parachute Recovery System Failed to Deploy"]
["Describe the parachute recovery system installed on the aircraft."]
[]
["Describe the circumstances leading to the failure of the parachute recovery system. If known, what caused the parachute recovery system to fail?"]
[]
["What corrective action was taken to minimize the risk of the same type of failure occurring again?"]
[]
["end"]

{"sheet":"Other","index":22,"n_rows":8,"n_cols":1,"rows_kept":8,"hidden":true,"merged":[[0,0,0,2],[1,0,1,2],[2,0,2,2],[3,0,3,2],[4,0,4,2],[5,0,5,2],[6,0,6,2]]}
["Other Anomaly"]
["Describe the anomaly."]
[]
["If known, what caused the anomaly?"]
[]
["If applicable, what corrective action was taken to minimize the risk of the anomaly reoccurring?"]
[]
["end"]

{"sheet":"Values","index":23,"n_rows":10,"n_cols":23,"rows_kept":10,"hidden":true}
["MIssion Type",null,"Flight Type",null,"UOM Length",null,"UOM Weight",null,"UOM Speed",null,"Geofencing Action",null,"Automatic Contingency System",null,"GNSS Lost Link Procedures",null,"CNPC Lost Link Procedures",null,"Crewmember Comm Loss Effect",null,"HAZMAT Quantity",null,"Packing Group"]
["Aeronautical Research",null,"Operational",null,"CM - Centimeters",null,"G - Grams",null,"FT/S - Feet per Second",null,"Automatic contingency system activated",null,"Landed at waypoint",null,"Continued pre-programmed flight",null,"Entered a holding pattern until connection reestablished",null,"Entered a holding pattern until connection reestablished",null,"G - Grams",null,"I: Substances presenting high danger"]
["Agricultural Delivery/Application",null,"Functional Check",null,"FL - Flight Levels (hundreds of feet)",null,"KG - Kilograms",null,"KT - Knots",null,"Flight outside geofence area terminated only when UA power supply was consumed",null,"Landed in place",null,"Hovered in place until connection reestablished",null,"Hovered in place until connection reestablished",null,"Hovered in place until connection reestablished",null,"KG - Kilograms",null,"II: Substances presenting medium danger"]
["Agricultural Operation",null,"Training",null,"FT - Feet",null,"LB - Pounds",null,"KPH - Kilometers per Hour",null,"RPIC initiated contingency procedure",null,"Returned to home",null,"Reduced altitude",null,"Landed at alternate landing zone",null,"Returned to home",null,"LB - Pounds",null,"III: Substances presenting low danger"]
["Environmental Survey",{"$nulls":3},"IN - Inches",null,"OZ - Ounces",null,"M/S - Meters per Second",{"$nulls":5},"Entered a holding pattern until connection reestablished",null,"Reduced altitude",null,"Landed in place",null,"OZ - Ounces"]
["Infrastructure Inspection (Linear)",{"$nulls":3},"KM - Kilometers",{"$nulls":3},"MPH - Miles per Hour",{"$nulls":5},"Landed in place",null,"Returned to home",null,"Other",null,"EA - Each"]
["Infrastructure Inspection (Non-Linear)",{"$nulls":3},"M - Meters",{"$nulls":9},"Other",null,"Landed in place"]
["Package Delivery",{"$nulls":3},"MI - Statute Mile",{"$nulls":11},"Other"]
["Public Safety",{"$nulls":3},"NM - Nautical Miles"]
["Other",{"$nulls":3},"SM - Standard Meters (tens of meters)"]